bitfinex-derivatives/quotes_ETHF0:USTF0_20250417
["timestamp","ask_amount","ask_price","bid_price","bid_amount"]
[1744914431479,4.05972,1610.6,1610.5,7.18948]
[1744914431681,4.11899873,1610.7,1610.6,1.24187]
[1744914431977,4.11899873,1610.7,1610.6,8.66717]
[1744914435579,5.36078873,1610.7,1610.6,8.66717]
[1744914435775,8.41368873,1610.7,1610.6,8.66717]
[1744914435983,8.41368873,1610.7,1610.6,4.394]
[1744914436277,7.43679,1610.7,1610.6,4.394]
[1744914438585,1.24187,1610.6,1610.5,0.075]
[1744914438783,7.47277,1610.6,1610.5,0.075]
[1744914439085,7.47277,1610.6,1610.5,1.31694]
[1744914439272,6.2309,1610.6,1610.5,1.31694]
[1744914439477,1.24178,1610.8,1610.6,3.10449]
[1744914439778,1.24178,1610.8,1610.7,11.63004]
[1744914439980,5.36077873,1610.8,1610.7,10.3883]
[1744914440188,4.11899873,1610.8,1610.7,8.52529]
[1744914440383,8.38380873,1610.8,1610.7,5.63579]
[1744914441087,4.11899873,1610.8,1610.7,8.74059]
[1744914441283,4.11899873,1610.8,1610.7,13.81559]
[1744914442992,4.11899873,1611.0,1610.9,1.24164]
[1744914443291,4.11899873,1611.0,1610.9,1.31664]
[1744914443489,8.50445873,1611.0,1610.9,4.469]
[1744914443792,11.71225873,1611.0,1610.9,4.469]
[1744914444087,19.88865873,1611.0,1610.9,4.394]
[1744914444289,1.24178,1610.8,1610.7,5.63477]
[1744914445190,1.24178,1610.8,1610.7,4.468]
[1744914445389,4.44958,1610.8,1610.7,4.468]
[1744914445593,4.44958,1610.8,1610.7,5.70979]
[1744914446492,4.44958,1610.8,1610.7,4.468]
[1744914446694,4.44958,1610.8,1610.7,5.70979]
[1744914446892,4.16129,1610.9,1610.8,1.24171]
[1744914447200,2.9196,1610.9,1610.8,1.24171]
[1744914447386,4.16124,1610.9,1610.8,1.24171]
[1744914447586,2.9196,1610.9,1610.8,1.24171]
[1744914447789,1.24164,1610.9,1610.8,7.28671]
[1744914447986,4.20384,1610.9,1610.8,7.28671]
[1744914448387,1.24171,1610.8,1610.7,5.63475]
[1744914448690,7.41171,1610.8,1610.7,4.393]
[1744914448886,7.41171,1610.8,1610.7,5.63479]
[1744914449082,1.24179,1610.7,1610.6,10.1851]
[1744914449291,4.20399,1610.7,1610.6,4.393]
[1744914450383,4.20399,1610.7,1610.6,5.63487]
[1744914451294,2.9622,1610.7,1610.6,8.78707]
[1744914451491,2.9622,1610.7,1610.6,5.63487]
[1744914451792,4.20399,1610.7,1610.6,5.63487]
[1744914453397,2.9622,1610.7,1610.6,5.63487]
[1744914453599,4.20399,1610.7,1610.6,5.63487]
[1744914456619,4.20399,1610.7,1610.6,8.62107]
[1744914456897,1.24179,1610.7,1610.6,8.62107]
[1744914457097,2.9773,1610.8,1610.7,1.24179]
[1744914457302,2.9773,1610.8,1610.7,7.20799]
[1744914457897,7.42681,1610.8,1610.7,4.29199]
[1744914458400,4.21901,1610.8,1610.7,4.29199]
[1744914458698,2.9773,1610.8,1610.7,4.29199]
[1744914459004,6.19703867,1610.9,1610.8,1.24171]
[1744914459202,6.19703867,1610.9,1610.8,7.30111]
[1744914459796,10.31267867,1610.9,1610.8,7.30111]
[1744914460197,13.52047867,1610.9,1610.8,4.39]
[1744914460396,10.31267867,1610.9,1610.8,5.63171]
[1744914460794,9.07103867,1610.9,1610.8,5.63171]
[1744914460998,10.31267867,1610.9,1610.8,8.66811]
[1744914461398,10.31267867,1610.9,1610.8,5.63171]
[1744914462506,4.11564,1610.9,1610.8,5.63171]
[1744914464802,4.11564,1610.9,1610.8,4.39]
[1744914465502,4.11564,1610.9,1610.8,5.63171]
[1744914465701,7.32344,1610.9,1610.8,4.39]
[1744914466599,7.32344,1610.9,1610.8,5.63171]
[1744914466600,2.874,1610.9,1610.8,5.63171]
[1744914466809,4.14095296,1611.0,1610.9,1.24164]
[1744914467010,4.14095296,1611.0,1610.9,7.08364]
[1744914467508,9.17313867,1611.0,1610.9,7.08364]
[1744914468011,10.41469867,1611.0,1610.9,7.08364]
[1744914468413,9.17313867,1611.0,1610.9,7.08364]
[1744914469201,10.41469867,1611.0,1610.9,7.08364]
[1744914469918,9.17313867,1611.0,1610.9,7.08364]
[1744914470616,10.41469867,1611.0,1610.9,7.08364]
[1744914471522,2.9761,1611.0,1610.9,7.08364]
[1744914471721,4.21766,1611.0,1610.9,7.08364]
[1744914472621,2.9761,1611.0,1610.9,7.08364]
[1744914472824,4.21766,1611.0,1610.9,7.08364]
[1744914474125,2.9761,1611.0,1610.9,7.08364]
[1744914474324,4.21766,1611.0,1610.9,7.08364]
[1744914474522,2.9761,1611.0,1610.9,7.08364]
[1744914474919,4.21766,1611.0,1610.9,7.08364]
[1744914475125,2.9761,1611.0,1610.9,7.08364]
[1744914475627,4.21766,1611.0,1610.9,7.08364]
[1744914476125,2.9761,1611.0,1610.9,7.08364]
[1744914476522,7.11707233,1611.0,1610.9,7.08364]
[1744914476722,8.35863233,1611.0,1610.9,7.08364]
[1744914479332,8.35863233,1611.0,1610.9,4.11484]
[1744914479723,7.11707233,1611.0,1610.9,4.11484]
[1744914479923,7.11707233,1611.0,1610.9,7.16574]
[1744914480333,13.42878233,1611.0,1610.7,1.24175]
[1744914480632,4.44951,1610.8,1610.7,4.39]
[1744914481131,7.54181,1610.8,1610.7,4.465]
[1744914481824,12.54181,1610.8,1610.7,4.465]
[1744914482129,12.54181,1610.8,1610.7,0.075]
[1744914482328,1.24194,1610.5,1610.4,5.63196]
[1744914483231,4.33424,1610.5,1610.4,5.70696]
[1744914483633,3.0923,1610.5,1610.4,5.70696]
[1744914483831,3.0923,1610.5,1610.4,8.65756]
[1744914484233,3.2078,1610.6,1610.5,1.24194]
[1744914484440,3.2078,1610.6,1610.5,7.42914]
[1744914484626,2.923,1610.7,1610.6,1.24187]
[1744914484832,15.41248262,1611.0,1610.7,3.10432]
[1744914485026,2.923,1610.9,1610.8,5.63171]
[1744914485231,4.16464,1610.9,1610.8,8.64811]
[1744914486535,2.923,1610.9,1610.8,8.64811]
[1744914486939,2.923,1610.9,1610.8,11.81891]
[1744914487128,4.16464,1610.9,1610.8,11.81891]
[1744914487329,2.923,1610.9,1610.8,11.81891]
[1744914487526,4.16464,1610.9,1610.8,11.81891]
[1744914488038,8.30814636,1610.9,1610.8,7.4064]
[1744914488239,8.30814636,1610.9,1610.8,8.64811]
[1744914489935,8.30814636,1610.9,1610.8,11.59431]
[1744914490436,7.06650636,1610.9,1610.8,11.59431]
[1744914490737,4.14350636,1610.9,1610.8,11.59431]
[1744914490937,5.38514636,1610.9,1610.8,11.59431]
[1744914491339,8.46214636,1610.9,1610.8,11.59431]
[1744914492635,8.46214636,1610.9,1610.8,7.4064]
[1744914492837,8.46214636,1610.9,1610.8,5.63171]
[1744914493039,14.50084636,1610.9,1610.8,5.63171]
[1744914493231,7.22050636,1610.9,1610.8,5.63171]
[1744914493433,8.46214636,1610.9,1610.8,5.63171]
[1744914494340,7.22050636,1610.9,1610.8,5.63171]
[1744914495537,7.22050636,1610.9,1610.8,8.65401]
[1744914496336,8.46214636,1610.9,1610.8,8.65401]
[1744914497044,7.22050636,1610.9,1610.8,8.65401]
[1744914497280,8.46214636,1610.9,1610.8,8.65401]
[1744914498379,7.22050636,1610.9,1610.8,8.65401]
[1744914498939,4.14350636,1610.9,1610.8,11.86181]
[1744914499142,4.14350636,1610.9,1610.8,16.86181]
[1744914501243,4.14350636,1610.9,1610.8,8.65401]
[1744914501448,7.09130636,1610.9,1610.8,8.65401]
[1744914502045,4.14350636,1610.9,1610.8,8.65401]
[1744914502250,7.09130636,1610.9,1610.8,8.65401]
[1744914502452,2.9478,1610.9,1610.8,11.86181]
[1744914502951,1.24155,1611.1,1610.8,11.86181]
[1744914502952,1.24155,1611.1,1611.0,1.24156]
[1744914503252,4.18735,1611.1,1611.0,1.24156]
[1744914503553,1.24156,1611.0,1610.9,1.24157]
[1744914503754,10.16796,1611.0,1610.9,1.24157]
[1744914503954,1.24164,1610.9,1610.8,5.63164]
[1744914504153,4.18744,1610.9,1610.8,5.63164]
[1744914505653,4.18744,1610.9,1610.8,1.24164]
[1744914505853,4.18744,1610.9,1610.8,5.62764]
[1744914506653,2.9458,1610.9,1610.8,5.62764]
[1744914506888,4.18744,1610.9,1610.8,5.62764]
[1744914508750,4.18744,1610.9,1610.8,4.386]
[1744914509358,9.12260132,1610.9,1610.8,4.386]
[1744914509555,14.12260132,1610.9,1610.8,4.386]
[1744914509856,1.24171,1610.8,1610.7,0.075]
[1744914510051,7.56991,1610.8,1610.7,0.075]
[1744914510350,12.56991,1610.8,1610.7,0.075]
[1744914511350,1.24194,1610.5,1610.4,0.075]
[1744914511552,4.44974,1610.5,1610.4,0.075]
[1744914512959,4.44974,1610.5,1610.4,1.31702]
[1744914513661,15.60016087,1610.5,1610.4,1.31702]
[1744914514059,14.35822087,1610.5,1610.4,1.31702]
[1744914514292,14.23612087,1610.5,1610.4,7.44382]
[1744914514560,15.47806087,1610.5,1610.4,7.44382]
[1744914515553,14.23612087,1610.5,1610.4,7.44382]
[1744914515845,15.47806087,1610.5,1610.4,7.44382]
[1744914516049,15.47806087,1610.5,1610.4,10.42532]
[1744914516561,14.23612087,1610.5,1610.4,10.42532]
[1744914516760,4.32764,1610.5,1610.4,10.42532]
[1744914517059,3.0857,1610.5,1610.4,10.42532]
[1744914517463,4.32764,1610.5,1610.4,10.42532]
[1744914518255,4.32764,1610.5,1610.4,7.44382]
[1744914518758,3.0857,1610.5,1610.4,7.44382]
[1744914519064,3.0857,1610.5,1610.4,10.41542]
[1744914519560,4.32764,1610.5,1610.4,10.41542]
[1744914520164,4.32764,1610.5,1610.4,7.44382]
[1744914521265,4.32764,1610.5,1610.4,1.31702]
[1744914521662,3.0857,1610.5,1610.4,1.31702]
[1744914521962,3.0857,1610.5,1610.4,4.47862]
[1744914524168,4.32764,1610.5,1610.4,4.47862]
[1744914524765,3.0857,1610.5,1610.4,4.47862]
[1744914525163,19.67756591,1610.7,1610.5,1.24194]
[1744914525464,10.35876591,1610.7,1610.6,8.83367]
[1744914525960,10.35876591,1610.7,1610.6,11.46727]
[1744914526363,10.35876591,1610.7,1610.6,8.25947]
[1744914526865,11.60055591,1610.7,1610.6,5.62587]
[1744914527058,14.41325591,1610.7,1610.6,4.384]
[1744914527258,1.24187,1610.6,1610.5,7.42069]
[1744914527457,7.26237,1610.6,1610.5,11.80469]
[1744914527966,7.26237,1610.6,1610.5,8.64119]
[1744914528367,7.26237,1610.6,1610.5,4.458]
[1744914530393,12.26237,1610.6,1610.5,0.075]
[1744914531267,1.24194,1610.5,1610.4,0.075]
[1744914531463,6.84334,1610.5,1610.4,0.075]
[1744914532971,6.84334,1610.5,1610.4,1.31702]
[1744914533885,6.84334,1610.5,1610.4,3.92772]
[1744914534385,4.06344,1610.5,1610.4,3.92772]
[1744914535284,8.20087327,1610.5,1610.4,3.92772]
[1744914535783,8.20087327,1610.5,1610.4,6.75022]
[1744914536985,8.20087327,1610.5,1610.4,5.5082]
[1744914537983,8.20087327,1610.5,1610.4,6.75022]
[1744914538484,8.20087327,1610.5,1610.4,5.5082]
[1744914538682,8.20087327,1610.5,1610.4,6.75022]
[1744914538983,8.20087327,1610.5,1610.4,5.5082]
[1744914539188,8.20087327,1610.5,1610.4,6.75022]
[1744914539379,8.20087327,1610.5,1610.4,0.075]
[1744914539580,11.01857327,1610.5,1610.4,0.075]
[1744914545687,11.81049819,1610.5,1610.4,1.31702]
[1744914546185,11.81049819,1610.5,1610.4,0.075]
[1744914549681,13.88832447,1610.5,1610.4,0.075]
[1744914550385,18.88832447,1610.5,1610.4,0.06569516]
[1744914550688,18.88832447,1610.5,1610.4,5.16e-06]
[1744914550880,1.24202,1610.4,1610.3,2.58e-06]
[1744914551081,14.37002,1610.4,1610.3,2.58e-06]
[1744914551388,19.37002,1610.4,1610.3,2.58e-06]
[1744914551590,1.24248,1609.8,1609.7,9.7097]
[1744914551785,4.45028,1609.8,1609.7,5.3297]
[1744914551990,1.24264,1609.7,1609.6,1.24262]
[1744914552190,1.24264,1609.7,1609.6,6.59992]
[1744914552191,3.84144,1609.7,1609.6,6.59992]
[1744914552487,3.84144,1609.7,1609.6,9.39762]
[1744914552997,3.84144,1609.7,1609.6,8.155]
[1744914553490,3.84144,1609.7,1609.6,9.39764]
[1744914553795,3.84144,1609.7,1609.6,8.155]
[1744914554590,3.84144,1609.7,1609.6,9.39764]
[1744914554893,1.24264,1609.6,1609.5,0.08429742]
[1744914555092,7.06464,1609.6,1609.5,0.08429742]
[1744914555890,7.06464,1609.6,1609.5,5.47849742]
[1744914556088,4.45044,1609.6,1609.5,6.72121742]
[1744914556289,1.24264,1609.6,1609.5,6.72121742]
[1744914556793,1.24264,1609.6,1609.5,6.72115742]
[1744914557590,1.24264,1609.6,1609.5,6.72121742]
[1744914557998,1.24264,1609.6,1609.5,5.47849742]
[1744914558202,4.45044,1609.6,1609.5,5.47849742]
[1744914558899,4.45044,1609.6,1609.5,9.37611742]
[1744914559100,4.45044,1609.6,1609.5,5.47849742]
[1744914560501,4.45044,1609.6,1609.5,6.72121742]
[1744914560698,1.24264,1609.6,1609.5,9.51751742]
[1744914560998,3.85682,1609.7,1609.6,1.24264]
[1744914561193,1.24262,1609.7,1609.6,4.03894]
[1744914561398,1.24262,1609.7,1609.6,8.42094]
[1744914562396,3.91822,1609.7,1609.6,8.42094]
[1744914562997,1.24256,1609.7,1609.6,8.42086]
[1744914565199,4.45963742,1609.8,1609.7,1.24256]
[1744914565501,3.21709742,1609.8,1609.7,1.24256]
[1744914565701,0.00929742,1609.8,1609.7,9.06096]
[1744914565902,0.00929742,1609.8,1609.7,4.06096]
[1744914566294,0.00929742,1609.8,1609.7,4.13596]
[1744914567404,1.25177742,1609.8,1609.7,4.13596]
[1744914567599,0.00929742,1609.8,1609.7,4.13596]
[1744914570105,1.25177742,1609.8,1609.7,4.13596]
[1744914570403,0.00929742,1609.8,1609.7,4.13596]
[1744914570703,3.89967742,1609.8,1609.7,4.13596]
[1744914571304,2.65719742,1609.8,1609.7,4.13596]
[1744914572409,3.89967742,1609.8,1609.7,1.31756]
[1744914574204,3.89967742,1609.8,1609.7,0.075]
[1744914574507,8.89967742,1609.8,1609.7,0.075]
[1744914576115,3.89967742,1609.8,1609.7,0.075]
[1744914581316,8.04030468,1609.8,1609.7,0.075]
[1744914582812,8.04030468,1609.8,1609.7,1.31756]
[1744914583413,8.04030468,1609.8,1609.7,5.69556]
[1744914583614,8.04030468,1609.8,1609.7,4.453]
[1744914584211,3.89967742,1609.8,1609.7,4.453]
[1744914585717,3.89967742,1609.8,1609.7,5.69556]
[1744914585908,3.89967742,1609.8,1609.7,4.453]
[1744914587906,3.89967742,1609.8,1609.7,0.075]
[1744914591015,3.89967742,1609.8,1609.7,1.31756]
[1744914591618,3.89967742,1609.8,1609.7,0.075]
[1744914591854,3.89967742,1609.8,1609.7,1.31756]
[1744914592724,8.04030468,1609.8,1609.7,1.31756]
[1744914593223,8.04030468,1609.8,1609.7,0.075]
[1744914595028,10.57090468,1609.8,1609.7,0.075]
[1744914596417,11.36312228,1609.8,1609.7,0.075]
[1744914599628,24.79000955,1609.8,1609.7,0.075]
[1744914600531,22.25940955,1609.8,1609.7,1.31756]
[1744914600730,22.25940955,1609.8,1609.7,0.075]
[1744914601225,22.25940955,1609.8,1609.7,1.31756]
[1744914601527,18.36902955,1609.8,1609.7,6.31756]
[1744914602032,18.36902955,1609.8,1609.7,8.86776]
[1744914603925,0.00929742,1609.8,1609.7,8.86776]
[1744914605239,4.45957742,1609.8,1609.7,3.86776]
[1744914606042,1.25177742,1609.8,1609.7,3.86776]
[1744914607345,4.45957742,1609.8,1609.7,3.86776]
[1744914607942,4.45957742,1609.8,1609.7,1.31756]
[1744914608137,7.09737742,1609.8,1609.7,1.31756]
[1744914608542,3.88957742,1609.8,1609.7,1.31756]
[1744914609541,7.09737742,1609.8,1609.7,1.31756]
[1744914609741,3.88957742,1609.8,1609.7,1.31756]
[1744914611173,3.88957742,1609.8,1609.7,4.11626]
[1744914612844,0.00929742,1609.8,1609.7,9.11626]
[1744914613742,0.00929742,1609.8,1609.7,12.32406]
[1744914614947,3.77922,1610.1,1610.0,1.24233]
[1744914614948,10.36597632,1610.1,1610.0,1.24233]
[1744914615147,10.36597632,1610.1,1610.0,5.69033]
[1744914615450,10.36597632,1610.1,1610.0,11.42983]
[1744914617339,1.73363374,1610.1,1610.0,16.42983]
[1744914618646,0.23292374,1610.1,1610.0,16.42983]
[1744914618947,7.42e-06,1610.2,1610.1,1.24225]
[1744914619141,6.84951195,1610.3,1610.2,1.24218]
[1744914619343,4.13600642,1610.4,1610.3,1.2421]
[1744914619543,4.13600642,1610.4,1610.3,8.2494]
[1744914619778,4.13600642,1610.4,1610.3,13.2494]
[1744914619951,2.82581642,1610.4,1610.3,13.2494]
[1744914620146,0.14379642,1610.4,1610.3,13.2494]
[1744914620351,6.42e-06,1610.4,1610.3,13.2494]
[1744914620549,3.84e-06,1610.5,1610.4,1.24202]
[1744914620752,3.84e-06,1610.5,1610.4,7.08412]
[1744914620945,3.84e-06,1610.5,1610.4,12.08412]
[1744914621147,3.84e-06,1610.5,1610.4,12.15912]
[1744914621745,3.84e-06,1610.5,1610.4,12.66697061]
[1744914622349,3.84e-06,1610.5,1610.4,9.91382]
[1744914623853,3.84e-06,1610.5,1610.4,7.27952]
[1744914624245,5.42600384,1610.5,1610.4,7.27952]
[1744914624440,2.72080384,1610.5,1610.4,7.27952]
[1744914624655,2.72080384,1610.5,1610.4,14.97012]
[1744914624656,3.84e-06,1610.5,1610.4,14.97012]
[1744914625553,3.84e-06,1610.5,1610.4,9.97012]
[1744914626053,3.84e-06,1610.5,1610.4,12.65202]
[1744914629054,3.84e-06,1610.5,1610.4,9.96142]
[1744914629280,3.84e-06,1610.5,1610.4,1.31702]
[1744914633559,9.44974384,1610.5,1610.4,0.075]
[1744914633768,9.44974384,1610.5,1610.4,4.446]
[1744914636063,9.44974384,1610.5,1610.4,5.68802]
[1744914636262,6.24194384,1610.5,1610.4,5.68802]
[1744914636465,3.84e-06,1610.5,1610.4,5.68802]
[1744914637063,2.79860384,1610.5,1610.4,5.68802]
[1744914641065,2.79860384,1610.5,1610.4,8.25322]
[1744914642765,3.84e-06,1610.5,1610.4,8.25322]
[1744914642965,3.84e-06,1610.5,1610.4,19.06252]
[1744914647363,3.84e-06,1610.5,1610.4,14.06252]
[1744914649174,3.84e-06,1610.5,1610.4,19.06252]
[1744914649372,3.84e-06,1610.5,1610.4,14.06252]
[1744914656079,3.84e-06,1610.5,1610.4,11.46102]
[1744914656485,2.64630384,1610.5,1610.4,8.89582]
[1744914656983,5.23110384,1610.5,1610.4,8.89582]
[1744914659796,2.58480384,1610.5,1610.4,8.89582]
[1744914665299,3.84e-06,1610.5,1610.4,8.89582]
[1744914665601,3.84e-06,1610.5,1610.4,11.36632]
[1744914669391,3.84e-06,1610.5,1610.4,8.89582]
[1744914669599,3.84e-06,1610.5,1610.4,4.52482]
[1744914669800,3.84e-06,1610.5,1610.4,8.89182]
[1744914673802,3.84e-06,1610.5,1610.4,11.33312]
[1744914675607,8.23667034,1611.0,1610.5,3.10487]
[1744914675801,8.23667034,1611.0,1610.9,4.44944]
[1744914676001,8.23667034,1611.0,1610.9,8.81244]
[1744914676231,8.23667034,1611.0,1610.9,8.88744]
[1744914676701,5.49337034,1611.0,1610.9,14.07204]
[1744914676906,4.17951034,1611.0,1610.9,14.07204]
[1744914677109,2.33711034,1611.0,1610.9,14.07204]
[1744914677603,1.07178034,1611.0,1610.9,14.07204]
[1744914678001,10.36086558,1611.1,1611.0,1.24156]
[1744914678002,0.00929742,1611.1,1611.0,1.24156]
[1744914678196,7.42e-06,1611.1,1611.0,3.82456]
[1744914679109,7.42e-06,1611.1,1611.0,3.89956]
[1744914679609,7.42e-06,1611.1,1611.0,4.39817064]
[1744914681114,7.42e-06,1611.1,1611.0,3.89956]
[1744914682105,7.42e-06,1611.1,1611.0,3.82456]
[1744914682406,7.42e-06,1611.1,1611.0,1.24156]
[1744914682809,2.63580742,1611.1,1611.0,1.24156]
[1744914684614,10.22150742,1611.1,1611.0,1.24156]
[1744914685510,11.46298742,1611.1,1611.0,1.24156]
[1744914685706,10.22150742,1611.1,1611.0,1.24156]
[1744914686207,10.22150742,1611.1,1610.9,5.60458]
[1744914686516,6.87266,1611.0,1610.9,4.363]
[1744914686907,1.24164,1610.9,1610.8,8.15061141]
[1744914687109,11.31354,1610.9,1610.8,8.15061141]
[1744914687308,11.31354,1610.9,1610.8,9.39232141]
[1744914688032,10.0719,1610.9,1610.8,9.39232141]
[1744914688217,5.0719,1610.9,1610.8,1.25100742]
[1744914691810,6.31354,1610.9,1610.8,0.00929742]
[1744914692115,5.0719,1610.9,1610.8,1.25100742]
[1744914692315,11.31354,1610.9,1610.8,0.00929742]
[1744914692914,5.0719,1610.9,1610.8,1.25100742]
[1744914693120,2.4233,1610.9,1610.8,1.25100742]
[1744914693421,2.4233,1610.9,1610.8,7.09260742]
[1744914693718,2.58570742,1611.1,1611.0,1.24156]
[1744914694018,5.22110742,1611.1,1611.0,5.60356]
[1744914694209,5.22110742,1611.1,1611.0,5.67856]
[1744914695119,5.22110742,1611.1,1611.0,5.60356]
[1744914695719,2.63540742,1611.1,1611.0,5.60356]
[1744914696115,2.63540742,1611.1,1611.0,5.67856]
[1744914696416,7.42e-06,1611.1,1611.0,8.88636]
[1744914696819,7.42e-06,1611.1,1611.0,11.35376]
[1744914697213,7.42e-06,1611.1,1611.0,8.14596]
[1744914698217,7.42e-06,1611.1,1611.0,8.07096]
[1744914698522,7.42e-06,1611.1,1611.0,11.27876]
[1744914699628,7.42e-06,1611.1,1611.0,5.60256]
[1744914699819,4.44928742,1611.1,1611.0,4.361]
[1744914700222,7.06918742,1611.1,1611.0,4.361]
[1744914700522,14.48248742,1611.1,1611.0,4.361]
[1744914701019,14.48248742,1611.1,1611.0,5.60256]
[1744914701619,13.24100742,1611.1,1611.0,5.60256]
[1744914701819,8.24100742,1611.1,1611.0,5.60256]
[1744914702023,9.48248742,1611.1,1611.0,5.60256]
[1744914703119,8.24100742,1611.1,1611.0,5.60256]
[1744914703427,9.48248742,1611.1,1611.0,5.60256]
[1744914704016,8.24100742,1611.1,1611.0,5.60256]
[1744914704218,9.48248742,1611.1,1611.0,5.60256]
[1744914706128,8.24100742,1611.1,1611.0,5.60256]
[1744914707916,9.48248742,1611.1,1611.0,5.60256]
[1744914708620,2.41330742,1611.1,1611.0,5.60256]
[1744914708815,2.41330742,1611.1,1611.0,8.11966]
[1744914709021,2.41330742,1611.1,1611.0,10.58046]
[1744914710131,2.41330742,1611.1,1611.0,10.65546]
[1744914712528,7.42e-06,1611.1,1611.0,10.65546]
[1744914717629,7.42e-06,1611.1,1611.0,15.65546]
[1744914717933,7.42e-06,1611.1,1611.0,10.65546]
[1744914718631,7.42e-06,1611.1,1611.0,15.65546]
[1744914720332,2.94806,1611.4,1611.3,1.24133]
[1744914720633,2.94806,1611.4,1611.3,8.80613]
[1744914720829,2.94806,1611.4,1611.3,16.46583]
[1744914722237,2.94806,1611.4,1611.3,13.25803]
[1744914725635,5.40816,1611.4,1611.3,13.25803]
[1744914725934,2.94806,1611.4,1611.3,13.25803]
[1744914726328,2.94806,1611.4,1611.3,16.46583]
[1744914728437,1e-05,1611.4,1611.3,107.50083]
[1744914729343,7.42e-06,1611.5,1611.4,1.24125]
[1744914729539,7.42e-06,1611.5,1611.4,3.73695]
[1744914730140,7.42e-06,1611.5,1611.4,3.81195]
[1744914730741,7.42e-06,1611.5,1611.4,1.31625]
[1744914731040,9.44897742,1611.5,1611.4,0.075]
[1744914731246,1.24125,1611.4,1611.3,90.392]
[1744914731441,6.13325,1611.4,1611.3,91.63333]
[1744914731740,11.13325,1611.4,1611.3,90.392]
[1744914732542,11.13325,1611.4,1611.3,4.357]
[1744914735043,1.24141,1611.2,1611.1,5.59442]
[1744914735250,4.44921,1611.2,1611.1,5.59442]
[1744914735439,9.44921,1611.2,1611.1,5.59442]
[1744914735635,12.09311,1611.2,1611.1,5.59442]
[1744914735842,10.8517,1611.2,1611.1,5.59442]
[1744914736949,12.09311,1611.2,1611.1,5.59442]
[1744914737151,12.09311,1611.2,1611.1,4.353]
[1744914737950,7.09311,1611.2,1611.1,4.353]
[1744914738149,7.09311,1611.2,1611.1,5.59448]
[1744914738349,7.09311,1611.2,1611.1,4.353]
[1744914739054,7.09311,1611.2,1611.1,5.59448]
[1744914739351,7.09311,1611.2,1611.1,4.353]
[1744914740286,12.09311,1611.2,1611.1,4.353]
[1744914742654,7.09311,1611.2,1611.1,4.353]
[1744914742855,9.71291,1611.2,1611.1,4.353]
[1744914749161,2.6198,1611.2,1611.1,5.59448]
[1744914749466,3.86121,1611.2,1611.1,5.59448]
[1744914750370,7.06901,1611.2,1611.1,5.59448]
[1744914750570,7.06901,1611.2,1611.1,4.353]
[1744914750961,7.06901,1611.2,1611.1,5.59448]
[1744914751366,7.06901,1611.2,1611.1,4.353]
[1744914751764,7.06901,1611.2,1611.1,5.59448]
[1744914751966,7.06901,1611.2,1611.1,4.353]
[1744914753061,7.06901,1611.2,1611.1,5.59448]
[1744914753370,7.06901,1611.2,1611.1,4.353]
[1744914755966,7.06901,1611.2,1611.1,5.59448]
[1744914757667,2.6198,1611.2,1611.1,5.59448]
[1744914757865,1.24139,1611.3,1611.2,1.24141]
[1744914758066,3.74039,1611.3,1611.2,6.43611]
[1744914760072,14.74743646,1611.4,1611.3,1.24133]
[1744914760274,10.29837646,1611.4,1611.3,3.88713]
[1744914761775,7.92657279,1611.5,1611.4,1.24125]
[1744914761974,7.92657279,1611.5,1611.4,10.48415]
[1744914762375,6.68540279,1611.5,1611.4,10.48415]
[1744914762576,7.92657279,1611.5,1611.4,10.48415]
[1744914763180,6.68540279,1611.5,1611.4,10.48415]
[1744914763676,5.36177279,1611.5,1611.4,10.48415]
[1744914764578,4.12060279,1611.5,1611.4,10.48415]
[1744914765879,2.37190742,1611.5,1611.4,10.48415]
[1744914766979,7.42e-06,1611.5,1611.4,10.48415]
[1744914768277,7.42e-06,1611.5,1611.4,10.55915]
[1744914768572,7.42e-06,1611.5,1611.4,15.55915]
[1744914770078,7.42e-06,1611.5,1611.4,10.55915]
[1744914771078,7.42e-06,1611.5,1611.4,10.48415]
[1744914774176,7.42e-06,1611.5,1611.4,10.55915]
[1744914777982,7.42e-06,1611.5,1611.4,15.55915]
[1744914779074,7.42e-06,1611.5,1611.4,10.55915]
[1744914780185,7.42e-06,1611.5,1611.4,1.24125]
[1744914780385,7.42e-06,1611.5,1611.4,5.58925]
[1744914780890,2.49840742,1611.5,1611.4,5.58925]
[1744914781687,2.49840742,1611.5,1611.4,7.95575]
[1744914782089,7.42e-06,1611.5,1611.4,7.95575]
[1744914782786,7.42e-06,1611.5,1611.4,11.16355]
[1744914783290,7.42e-06,1611.5,1611.4,11.23855]
[1744914784386,7.42e-06,1611.5,1611.4,16.23855]
[1744914784591,7.42e-06,1611.5,1611.4,102.26755]
[1744914785396,2.6163,1611.9,1611.8,1.24094]
[1744914785592,2.6163,1611.9,1611.8,5.58894]
[1744914786094,2.6163,1611.9,1611.8,13.21584]
[1744914786297,6.17778109,1612.0,1611.9,1.24087]
[1744914786485,8.72208109,1612.0,1611.9,3.84827]
[1744914787091,8.72208109,1612.0,1611.9,1.24087]
[1744914788595,9.96287109,1612.0,1611.9,1.24087]
[1744914788799,8.72208109,1612.0,1611.9,1.24087]
[1744914788994,9.96287109,1612.0,1611.9,1.24087]
[1744914789191,1.24087,1611.9,1611.8,5.58892]
[1744914789391,9.39677,1611.9,1611.8,4.348]
[1744914789593,14.39677,1611.9,1611.8,4.348]
[1744914789795,14.39677,1611.9,1611.8,5.58894]
[1744914790588,9.39677,1611.9,1611.8,5.58894]
[1744914790789,4.9481,1611.9,1611.8,5.58894]
[1744914790994,9.39677,1611.9,1611.8,5.58894]
[1744914791196,8.1559,1611.9,1611.8,5.58894]
[1744914791398,4.9481,1611.9,1611.8,5.58894]
[1744914791591,8.1559,1611.9,1611.8,5.58894]
[1744914791898,4.9481,1611.9,1611.8,5.58894]
[1744914795196,6.18897,1611.9,1611.8,5.58894]
[1744914795795,9.39677,1611.9,1611.8,5.58894]
[1744914797497,9.39677,1611.9,1611.8,4.348]